fUSD/lending_fUSD_20251019
["ID","MTS","AMOUNT","RATE_DAILY","PERIOD"]
[391812508,1760865605748,-17181.91968156,0.00045823,120]
[391812509,1760865605779,-375.1433527,0.00045825,120]
[391812510,1760865605809,-17181.91968156,0.00045826,120]
[391812511,1760865605844,-216.90346363,0.00045826,120]
[391812512,1760865605877,-7676.66510704,0.00045827,120]
[391812513,1760865605911,-171.41144641,0.00045828,120]
[391812514,1760865605947,-3621.20913064,0.0004583,120]
[391812515,1760865605983,-2573.64235203,0.00045834,120]
[391812516,1760865606021,-193.45196067,0.0004584,120]
[391812517,1760865606057,-431.02107938,0.0004584,120]
[391812518,1760865606091,-3090.80035357,0.00045844,120]
[391812519,1760865606124,-4171.65565591,0.00045847,120]
[391812520,1760865606156,-171.41144641,0.00045848,120]
[391812521,1760865606190,-93862.81301839,0.00045855,120]
[391812522,1760865606227,-46129.40040634,0.00045856,120]
[391812523,1760865606260,-171.41144641,0.00045858,120]
[391812524,1760865606292,-686085.95373258,0.00045859,120]
[391812525,1760865606324,-2783.29590349,0.00045865,120]
[391812526,1760865606357,-4171.65565591,0.00045875,120]
[391812527,1760865606395,-569060.38229857,0.00045877,120]
[391812528,1760865657644,-836.0,0.000404,30]
[391812529,1760865657671,-687.18,0.00041073,30]
[391812530,1760865657704,-500.0,0.00044899,120]
[391812531,1760865657734,-415.05603011,0.00044899,120]
[391812532,1760865657764,-5000.0,0.000449,120]
[391812533,1760865657791,-11382.0,0.00044958,117]
[391812534,1760865657818,-150.0,0.0004499,120]
[391812535,1760865657848,-276.4504461,0.00045499,120]
[391812536,1760865657875,-710.11,0.000455,30]
[391812537,1760865657902,-1000000.0,0.000455,120]
[391812538,1760865657930,-1000000.0,0.000455,120]
[391812539,1760865657957,-300.0,0.00045699,120]
[391812540,1760865657987,-311.1,0.00045699,120]
[391812541,1760865658015,-204.94385529,0.00045699,120]
[391812542,1760865658052,-1000000.0,0.000457,120]
[391812543,1760865658081,-1091.0,0.000457,30]
[391812544,1760865658109,-1000000.0,0.000458,120]
[391812545,1760865658138,-117025.57143401,0.00045877,120]
[391812546,1760865658165,-4889.55419773,0.00045878,120]
[391812547,1760865658192,-4889.55419773,0.00045878,120]
[391812548,1760865658221,-686085.95373258,0.00045881,120]
[391812549,1760865658248,-3090.80035357,0.00045882,120]
[391812550,1760865658275,-4171.65565591,0.00045883,120]
[391812551,1760865658301,-5118.80389122,0.00045883,120]
[391812552,1760865658328,-193.45196067,0.00045885,120]
[391812553,1760865658355,-994.60025521,0.00045887,120]
[391812554,1760865658382,-2302.99953212,0.00045888,120]
[391812555,1760865658409,-7676.66510704,0.00045888,120]
[391812556,1760865658436,-3621.20913064,0.00045888,120]
[391812557,1760865658464,-7676.66510704,0.00045888,120]
[391812558,1760865658493,-8239.3610045,0.00045889,120]
[391812559,1760865658525,-17032.64024798,0.00045889,120]
[391812560,1760865658555,-93862.81301839,0.00045891,120]
[391812561,1760865658584,-11263.86084216,0.00045891,120]
[391812562,1760865662971,-82598.95217623,0.00045891,120]
[391812563,1760865662998,-1151.49976605,0.00045893,120]
[391812564,1760865663030,-1472.87247749,0.00045893,120]
[391812565,1760865663057,-17032.64024798,0.00045893,120]
[391812566,1760865663091,-1151.49976605,0.00045899,120]
[391812567,1760865663122,-52821.09346422,0.000459,31]
[391812568,1760865663150,-8239.3610045,0.000459,120]
[391812569,1760865663177,-1000000.0,0.000459,120]
[391812570,1760865663206,-1000000.0,0.000459,120]
[391812571,1760865663233,-1000000.0,0.000459,120]
[391812572,1760865663261,-1000000.0,0.000459,120]
[391812573,1760865663289,-835532.08109748,0.000459,120]
[391812574,1760865665636,-54265.0,0.00045863,120]
[391812575,1760865665666,-164467.91890252,0.000459,120]
[391812576,1760865665692,-265.68506445,0.000459,120]
[391812577,1760865665718,-216.90346363,0.00045902,120]
[391812578,1760865665744,-4171.65565591,0.00045905,120]
[391812579,1760865665770,-2783.29590349,0.00045907,120]
[391812580,1760865665796,-1396.98938482,0.0004591,120]
[391812581,1760865665823,-17181.91968156,0.00045912,120]
[391812582,1760865665849,-46129.40040634,0.00045915,120]
[391812583,1760865665878,-2579.63223095,0.00045916,120]
[391812584,1760865665907,-1396.98938482,0.00045917,120]
[391812585,1760865665935,-205.0,0.00045917,120]
[391812586,1760865665961,-994.60025521,0.00045922,120]
[391812587,1760865665990,-686085.95373258,0.00045922,120]
[391812588,1760865666016,-1000000.0,0.00045925,120]
[391812589,1760865666048,-1845.74722957,0.00045927,120]
[391812590,1760865666076,-5118.80389122,0.00045927,120]
[391812591,1760865666114,-2573.64235203,0.00045927,120]
[391812592,1760865666144,-8192.93589341,0.0004593,120]
[391812593,1760865666171,-7676.66510704,0.00045932,120]
[391812594,1760865666200,-46129.40040634,0.00045938,120]
[391812595,1760865666231,-1396.98938482,0.0004594,120]
[391812596,1760865666262,-8239.3610045,0.00045941,120]
[391812597,1760865666292,-193.45196067,0.00045941,120]
[391812598,1760865666321,-2573.64235203,0.00045943,120]
[391812599,1760865666350,-1472.87247749,0.00045948,120]
[391812600,1760865666379,-46129.40040634,0.00045948,120]
[391812601,1760865666406,-171.41144641,0.00045949,120]
[391812602,1760865666433,-1000000.0,0.0004595,120]
[391812603,1760865666462,-2783.29590349,0.0004595,120]
[391812604,1760865666489,-267.95953765,0.00045951,120]
[391812605,1760865666517,-267.95953765,0.00045952,120]
[391812606,1760865666545,-994.60025521,0.00045955,120]
[391812607,1760865666574,-93862.81301839,0.00045958,120]
[391812608,1760865666602,-2302.99953212,0.00045958,120]
[391812609,1760865666629,-4856.23821355,0.00045959,120]
[391812610,1760865666658,-3621.20913064,0.0004596,120]
[391812611,1760865666848,-1472.87247749,0.00045961,120]
[391812612,1760865666880,-17032.64024798,0.00045961,120]
[391812613,1760865666908,-3621.20913064,0.00045966,120]
[391812614,1760865666937,-1000000.0,0.00045975,120]
[391812615,1760865666964,-17181.91968156,0.00045977,120]
[391812616,1760865666991,-193.45196067,0.00045978,120]
[391812617,1760865667019,-3090.80035357,0.00045984,120]
[391812618,1760865667052,-5118.80389122,0.00045988,120]
[391812619,1760865667082,-3090.80035357,0.00045988,120]
[391812620,1760865667110,-1396.98938482,0.00045989,120]
[391812621,1760865667138,-3037.0,0.0004599,110]
[391812622,1760865667168,-7676.66510704,0.0004599,120]
[391812623,1760865667196,-1396.98938482,0.00045994,120]
[391812624,1760865667222,-2579.63223095,0.00045996,120]
[391812625,1760865667249,-431.02107938,0.00045997,120]
[391812626,1760865667279,-4856.23821355,0.00045998,120]
[391812627,1760865667308,-1000.0,0.00045999,120]
[391812628,1760865667335,-366.55490908,0.00045999,120]
[391812629,1760865667362,-373.81733444,0.00045999,31]
[391812630,1760865667394,-169.5178845,0.00045999,120]
[391812631,1760865667423,-645.05104089,0.00045999,120]
[391812632,1760865667451,-267.95953765,0.00045999,120]
[391812633,1760865667485,-994.60025521,0.00045999,120]
[391812634,1760865667516,-267.95953765,0.00046,120]
[391812635,1760865667543,-5870.10679383,0.00046,120]
[391812636,1760865667570,-1015.0,0.00046,120]
[391812637,1760865667596,-608.57923765,0.00046,120]
[391812638,1760865667623,-210.57556199,0.00046,120]
[391812639,1760865667650,-1000.0,0.00046,30]
[391812640,1760865667680,-203.93456657,0.00046,30]
[391812641,1760865667715,-2167.76950028,0.00046,120]
[391812642,1760865667743,-426.93079378,0.00046,120]
[391812643,1760865667772,-2000.0,0.00046,60]
[391812644,1760865667802,-687422.26644237,0.00046,120]
[391812645,1760865670812,-701.51,0.000459,30]
[391812646,1760865670840,-312577.73355763,0.00046,120]
[391812647,1760865670867,-1000000.0,0.00046,120]
[391812648,1760865670893,-76299.46996896,0.00046,120]
[391812649,1760865670920,-300.0,0.00046,120]
[391812650,1760865670946,-500.0,0.00046,120]
[391812651,1760865670974,-274.04731048,0.00046,60]
[391812652,1760865671000,-50000.0,0.00046,34]
[391812653,1760865671029,-1750.2560123,0.00046,120]
[391812654,1760865671056,-1043.51964015,0.00046,120]
[391812655,1760865671087,-124461.94188679,0.00046,30]
[391812656,1760865671115,-3739.01,0.00046,30]
[391812657,1760865671143,-1000000.0,0.00046,120]
[391812658,1760865671171,-1000000.0,0.00046,120]
[391812659,1760865671198,-1000000.0,0.00046,120]
[391812660,1760865671226,-428352.51162369,0.00046,120]
[391812661,1760865684055,-300.0,0.0004499,120]
[391812662,1760865684084,-7625.71,0.00044999,120]
[391812663,1760865684113,-7625.71,0.00044999,120]
[391812664,1760865684141,-7625.71,0.00044999,120]
[391812665,1760865684169,-7625.71,0.00044999,120]
[391812666,1760865684201,-7625.71,0.00044999,120]
[391812667,1760865684231,-7625.71,0.00045249,120]
[391812668,1760865684259,-7625.71,0.00045249,120]
[391812669,1760865684287,-7625.71,0.00045249,120]
[391812670,1760865684314,-7625.71,0.00045249,120]
[391812671,1760865684340,-7625.71,0.00045249,120]
[391812672,1760865684369,-7625.71,0.00045499,120]
[391812673,1760865684396,-7625.71,0.00045499,120]
[391812674,1760865684424,-7625.71,0.00045499,120]
[391812675,1760865684455,-7625.71,0.00045499,120]
[391812676,1760865684483,-7625.71,0.00045499,120]
[391812677,1760865684510,-7625.71,0.00045499,120]
[391812678,1760865684537,-7625.71,0.00045499,120]
[391812679,1760865684564,-7625.71,0.00045499,120]
[391812680,1760865684592,-7625.71,0.00045499,120]
[391812681,1760865684618,-7625.71,0.00045499,120]
[391812682,1760865684645,-7625.71,0.00045499,120]
[391812683,1760865684671,-7625.71,0.00045499,120]
[391812684,1760865684701,-7625.71,0.00045499,120]
[391812685,1760865684728,-7625.91576669,0.00045499,120]
[391812686,1760865684756,-571647.48837631,0.00046,120]
[391812687,1760865684783,-1000000.0,0.00046,120]
[391812688,1760865684810,-220.6,0.00046,30]
[391812689,1760865684838,-16338.06,0.00046005,120]
[391812690,1760865684866,-489.75887519,0.0004613,120]
[391812691,1760865684893,-154.0,0.000463,120]
[391812692,1760865684920,-156.0,0.000463,120]
[391812693,1760865684950,-873.45777325,0.000464,120]
[391812694,1760865684978,-1371.73536862,0.000464,120]
[391812695,1760865685007,-1999999.0,0.0004642,120]
[391812696,1760865685037,-11100.0,0.000465,90]
[391812697,1760865685067,-771.57456068,0.000465,120]
[391812698,1760865685097,-50000.0,0.000465,34]
[391812699,1760865685129,-500.0,0.000465,120]
[391812700,1760865685158,-1000000.0,0.000465,120]
[391812701,1760865685355,-4437.46728749,0.00046575,120]
[391812702,1760865685390,-1000.0,0.00046666,60]
[391812703,1760865685417,-551.42413813,0.000468,120]
[391812704,1760865685446,-10000.0,0.000468,120]
[391812705,1760865685475,-147072.18785364,0.000468,120]
[391812706,1760865691036,-153.2,0.00033,60]
[391812707,1760865691066,-459.61,0.000397,60]
[391812708,1760865691096,-701.11,0.00044999,30]
[391812709,1760865691130,-1000000.0,0.000459,120]
[391812710,1760865691159,-1000000.0,0.00046,120]
[391812711,1760865691188,-1876144.99414636,0.000468,120]
[391812712,1760865691218,-948.40943139,0.000469,120]
[391812713,1760865691245,-5000.0,0.000469,120]
[391812714,1760865691273,-5308.0,0.00047,30]
[391812715,1760865691302,-608.74484667,0.00047,30]
[391812716,1760865691329,-50000.0,0.00047,33]
[391812717,1760865691357,-1000.0,0.00047,60]
[391812718,1760865691386,-2849.80261085,0.00047,120]
[391812719,1760865691413,-14764.0,0.00047,120]
[391812720,1760865691440,-500.0,0.00047,120]
[391812721,1760865691466,-1898.0,0.00047,120]
[391812722,1760865691493,-1898.0,0.00047,120]
[391812723,1760865691519,-44574.66077553,0.00047,120]
[391812724,1760865691547,-700.0,0.00047,120]
[391812725,1760865691572,-150.0,0.00047,120]
[391812726,1760865691599,-150.0,0.00047,120]
[391812727,1760865691626,-150.0,0.00047,120]
[391812728,1760865691652,-500.0,0.00047,120]
[391812729,1760865691678,-373324.1887,0.00047444,30]
[391812730,1760865691703,-564.33123333,0.000475,120]
[391812731,1760865691730,-500.0,0.000475,120]
[391812732,1760865691757,-50000.0,0.000475,35]
[391812733,1760865691786,-500.0,0.00047699,38]
[391812734,1760865691813,-250.0,0.00047699,38]
[391812735,1760865691840,-150.0,0.00047739,120]
[391812736,1760865691867,-30321.03647375,0.000478,120]
[391812737,1760865691892,-20000.0,0.000478,120]
[391812738,1760865691919,-20000.0,0.000478,120]
[391812739,1760865691947,-500.0,0.00047859,49]
[391812740,1760865691974,-250.0,0.00047859,49]
[391812741,1760865692001,-500.0,0.00047879,100]
[391812742,1760865692031,-250.0,0.00047879,100]
[391812743,1760865692060,-2000.0,0.0004789,62]
[391812744,1760865692086,-500.0,0.00047899,30]
[391812745,1760865692112,-250.0,0.00047899,30]
[391812746,1760865692141,-154.0,0.000479,120]
[391812747,1760865692169,-3349.06,0.0004794,120]
[391812748,1760865692196,-500.0,0.00047959,42]
[391812749,1760865692226,-500.0,0.00047959,55]
[391812750,1760865692256,-250.0,0.00047959,42]
[391812751,1760865692284,-250.0,0.00047959,55]
[391812752,1760865692312,-500.0,0.00047999,48]
[391812753,1760865692339,-500.0,0.00047999,60]
[391812754,1760865692367,-500.0,0.00047999,120]
[391812755,1760865692395,-250.0,0.00047999,48]
[391812756,1760865692422,-250.0,0.00047999,60]
[391812757,1760865692449,-250.0,0.00047999,120]
[391812758,1760865692476,-10656.82,0.00047999,120]
[391812759,1760865692504,-185477.74216328,0.00048,120]
[391812760,1760865692531,-500.0,0.00048,120]
[391812761,1760865692557,-21148.11840474,0.00048,120]
[391812762,1760865692584,-10000.0,0.00048,120]
[391812763,1760865692610,-150.0,0.00048,120]
[391812764,1760865692636,-32000.0,0.00048,120]
[391812765,1760865692662,-207.77,0.00048,120]
[391812766,1760865692688,-224288.4012141,0.00048,120]
[391812767,1760865725735,-572.617,0.00032919,34]
[391812768,1760865725762,-1000.0,0.0004489,120]
[391812769,1760865725788,-10500.0,0.0004499,120]
[391812770,1760865725812,-420.0,0.0004499,120]
[391812771,1760865725842,-65583.55784892,0.0004499,30]
[391812772,1760865725870,-1000000.0,0.00045,120]
[391812773,1760865726046,-1000000.0,0.000455,120]
[391812774,1760865726078,-1000000.0,0.000456,120]
[391812775,1760865726105,-6506.28,0.00045699,120]
[391812776,1760865726131,-6506.28,0.00045699,120]
[391812777,1760865726155,-6506.28,0.00045699,120]
[391812778,1760865726180,-6506.28,0.00045699,120]
[391812779,1760865726205,-10512.92,0.00045699,120]
[391812780,1760865726233,-10512.92,0.00045699,120]
[391812781,1760865726261,-10512.92,0.00045699,120]
[391812782,1760865726286,-10512.92,0.00045699,120]
[391812783,1760865726314,-1000000.0,0.000457,120]
[391812784,1760865726340,-6506.28,0.00045749,120]
[391812785,1760865726368,-6506.28,0.00045749,120]
[391812786,1760865726394,-6506.28,0.00045749,120]
[391812787,1760865726421,-6506.28,0.00045749,120]
[391812788,1760865726449,-10512.92,0.00045749,120]
[391812789,1760865726475,-10512.92,0.00045749,120]
[391812790,1760865726502,-10512.92,0.00045749,120]
[391812791,1760865726527,-10512.92,0.00045749,120]
[391812792,1760865726552,-6506.28,0.00045799,120]
[391812793,1760865726577,-6506.28,0.00045799,120]
[391812794,1760865726603,-6506.28,0.00045799,120]
[391812795,1760865726626,-6506.28,0.00045799,120]
[391812796,1760865726651,-6506.28,0.00045799,120]
[391812797,1760865726676,-10512.92,0.00045799,120]
[391812798,1760865726700,-10512.92,0.00045799,120]
[391812799,1760865727000,-10512.92,0.00045799,120]
[391812800,1760865727030,-10512.92,0.00045799,120]
[391812801,1760865727058,-10512.92,0.00045799,120]
[391812802,1760865727088,-6506.28,0.00045899,120]
[391812803,1760865727116,-6506.28,0.00045899,120]
[391812804,1760865727143,-6506.28,0.00045899,120]
[391812805,1760865727169,-6506.28,0.00045899,120]
[391812806,1760865727198,-10512.92,0.00045899,120]
[391812807,1760865727224,-10512.92,0.00045899,120]
[391812808,1760865727249,-10512.92,0.00045899,120]
[391812809,1760865727275,-10512.92,0.00045899,120]
[391812810,1760865727301,-632597.42515108,0.000459,120]
[391812811,1760865730727,-367402.57484892,0.000459,120]
[391812812,1760865730753,-6506.28,0.00045924,120]
[391812813,1760865730784,-6506.28,0.00045924,120]
[391812814,1760865730810,-6506.28,0.00045924,120]
[391812815,1760865730837,-6506.28,0.00045924,120]
[391812816,1760865730864,-6506.28,0.00045924,120]
[391812817,1760865730890,-6506.28,0.00045924,120]
[391812818,1760865730918,-6506.46537348,0.00045924,120]
[391812819,1760865730947,-10512.92,0.00045924,120]
[391812820,1760865730975,-10512.92,0.00045924,120]
[391812821,1760865731004,-10512.92,0.00045924,120]
[391812822,1760865731036,-10512.92,0.00045924,120]
[391812823,1760865731067,-10512.92,0.00045924,120]
[391812824,1760865731095,-10512.92,0.00045924,120]
[391812825,1760865731123,-10512.97517725,0.00045924,120]
[391812826,1760865731156,-1000000.0,0.000462,120]
[391812827,1760865731182,-1000000.0,0.000465,120]
[391812828,1760865731208,-1000000.0,0.000465,120]
[391812829,1760865731234,-1000000.0,0.000465,120]
[391812830,1760865731263,-237.04453,0.0004655,33]
[391812831,1760865731291,-513225.74007035,0.00047,120]
[391812832,1760865733851,-486774.25992965,0.00047,120]
[391812833,1760865733877,-1339.00804928,0.00047,120]
[391812834,1760865733903,-700.0,0.00047,120]
[391812835,1760865733929,-1000000.0,0.000475,120]
[391812836,1760865733957,-237.04453,0.0004755,38]
[391812837,1760865733985,-200.0,0.00047999,120]
[391812838,1760865734011,-1046965.71888736,0.00048,120]
[391812839,1760865734038,-300.0,0.00048,120]
[391812840,1760865734064,-4691.05720718,0.00048,120]
[391812841,1760865734089,-30290.43072239,0.00048,120]
[391812842,1760865734115,-1950.08560714,0.00048,120]
[391812843,1760865734141,-294.21155319,0.00048,120]
[391812844,1760865734166,-857.52995282,0.00048,120]
[391812845,1760865734192,-2929.9194407,0.00048,120]
[391812846,1760865734218,-1750.2560123,0.00048,120]
[391812847,1760865734243,-1043.51964015,0.00048,120]
[391812848,1760865734268,-2000.0,0.0004844,49]
[391812849,1760865734294,-430302.85,0.0004844,30]
[391812850,1760865734320,-3739.01,0.000485,30]
[391812851,1760865734346,-237.04453,0.0004855,42]
[391812852,1760865734371,-1000.0,0.0004855,120]
[391812853,1760865734398,-2017.0,0.0004856,55]
[391812854,1760865734424,-2000.0,0.0004865,58]
[391812855,1760865734454,-1000.0,0.00048666,60]
[391812856,1760865734483,-20000.0,0.000488,120]
[391812857,1760865734510,-9429.21593933,0.000488,120]
[391812858,1760865734536,-10303.90190539,0.000488,120]
[391812859,1760865734562,-10119.43583718,0.000488,120]
[391812860,1760865734587,-9540.93454655,0.000488,120]
[391812861,1760865734716,-10293.25642327,0.000488,120]
[391812862,1760865734744,-9859.7537971,0.000488,120]
[391812863,1760865734770,-9370.44063951,0.000488,120]
[391812864,1760865734796,-271948.37877969,0.000488,120]
[391812865,1760865734821,-20000.0,0.000488,120]
[391812866,1760865734846,-648.33263647,0.0004888,120]
[391812867,1760865734871,-1223.59263433,0.000489,120]
[391812868,1760865734896,-250618.05232515,0.000489,120]
[391812869,1760865734923,-156.0,0.000489,120]
[391812870,1760865734949,-51336.0,0.0004893,120]
[391812871,1760865734975,-1000.0,0.00048999,120]
[391812872,1760865735000,-1000.0,0.00048999,120]
[391812873,1760865735034,-744881.06975195,0.00049,120]
[391812874,1760865735061,-55261.8552381,0.00049,120]
[391812875,1760865735087,-784.2644107,0.00049,30]
[391812876,1760865735115,-250000.0,0.00049,120]
[391812877,1760865735144,-1000.0,0.00049,120]
[391812878,1760865735170,-1000.0,0.00049,120]
[391812879,1760865735195,-237606.56907312,0.00049,120]
[391812880,1760865738480,-163734.699521,0.00049,120]
[391812881,1760865738508,-150.0,0.00049,120]
[391812882,1760865738537,-2588.63081007,0.00049,120]
[391812883,1760865738565,-400.0,0.00049,120]
[391812884,1760865738592,-19157.29298211,0.00049,120]
[391812885,1760865738619,-14764.0,0.00049,120]
[391812886,1760865738646,-1898.0,0.00049,120]
[391812887,1760865738674,-1898.0,0.00049,120]
[391812888,1760865738701,-19999.999999,0.00049,120]
[391812889,1760865738726,-1142.54,0.0004911,120]
[391812890,1760865738752,-1000.0,0.00049314,120]
[391812891,1760865738782,-325.0,0.00049315,30]
[391812892,1760865738808,-300.0,0.00049315,30]
[391812893,1760865738834,-300.0,0.00049315,30]
[391812894,1760865738861,-300.0,0.00049315,30]
[391812895,1760865738888,-290.0,0.00049315,30]
[391812896,1760865738914,-10000.0,0.00049315,120]
[391812897,1760865738940,-16007.35,0.00049315,120]
[391812898,1760865738967,-2000.0,0.0004938,58]
[391812899,1760865738995,-5000.0,0.000494,120]
[391812900,1760865739026,-154.0,0.000494,120]
[391812901,1760865739054,-149329.6754,0.00049444,30]
[391812902,1760865739084,-146397.83639335,0.000495,120]
[391812903,1760865739112,-1787.22990809,0.000495,120]
[391812904,1760865739140,-173.51707076,0.000495,120]
[391812905,1760865739166,-666.07602527,0.00049556,120]
[391812906,1760865739194,-2057.0,0.0004963,55]
[391812907,1760865739224,-1000.0,0.00049666,60]
[391812908,1760865739252,-383.01,0.000497,90]
[391812909,1760865739282,-50746.0,0.0004973,120]
[391812910,1760865739309,-1552.0,0.0004978,49]
[391812911,1760865739336,-1500.0,0.0004978,58]
[391812912,1760865739362,-20000.0,0.000498,120]
[391812913,1760865739389,-127470.36061562,0.000498,30]
[391812914,1760865739418,-2354.0,0.0004983,120]
[391812915,1760865739444,-3496.60878092,0.000499,120]
[391812916,1760865739470,-244.02151389,0.000499,120]
[391812917,1760865739502,-50000.0,0.0005,50]
[391812918,1760865739529,-1000.0,0.0005,120]
[391812919,1760865739556,-1000.0,0.0005,120]
[391812920,1760865739583,-300.0,0.0005,120]
[391812921,1760865739609,-500.0,0.0005,120]
[391812922,1760865739635,-1213478.68555254,0.0005,120]
[391812923,1760865739660,-150.0,0.0005,120]
[391812924,1760865739686,-3300.0,0.0005,120]
[391812925,1760865739713,-10000.0,0.0005,120]
[391812926,1760865739739,-475.80997702,0.0005,120]
[391812927,1760865739769,-150.0,0.0005,120]
[391812928,1760865739794,-700.0,0.0005,30]
[391812929,1760865739819,-3798.47868335,0.0005,120]
[391812930,1760865739844,-1343.03413977,0.0005,120]
[391812931,1760865739871,-1079.18439744,0.0005,120]
[391812932,1760865739902,-224.80582914,0.0005,120]
[391812933,1760865739928,-164.90883069,0.0005,120]
[391812934,1760865739954,-500.0,0.0005,30]
[391812935,1760865739983,-5997.23708166,0.0005,60]
[391812936,1760865740009,-2500.0,0.0005,30]
[391812937,1760865740037,-150.0,0.0005,90]
[391812938,1760865740064,-18000.0,0.0005,120]
[391812939,1760865740095,-19000.0,0.0005,30]
[391812940,1760865740121,-25227.51,0.0005,120]
[391812941,1760865740148,-3754.3339991,0.0005,120]
[391812942,1760865740176,-1500.0,0.0005,120]
[391812943,1760865740202,-300.0,0.0005,120]
[391812944,1760865740228,-464977.76031238,0.0005,120]
[391812945,1760865740253,-241.0,0.0005,120]
[391812946,1760865740280,-100000.0,0.0005,30]
[391812947,1760865740306,-4154.3056469,0.0005,120]
[391812948,1760865740335,-338.30273205,0.0005,120]
[391812949,1760865740360,-3950.54586732,0.0005,120]
[391812950,1760865740386,-150.79665476,0.0005,120]
[391812951,1760865740413,-200742.86294737,0.0005,30]
[391812952,1760865740581,-2633.19,0.0005,120]
[391812953,1760865740610,-11795.0,0.0005,60]
[391812954,1760865740637,-101603.7,0.0005,120]
[391812955,1760865740662,-20318.39,0.0005,120]
[391812956,1760865740688,-4063.67,0.0005,120]
[391812957,1760865740713,-27886.37,0.0005,120]
[391812958,1760865740738,-5658.24,0.0005,120]
[391812959,1760865740763,-812.74,0.0005,120]
[391812960,1760865740789,-155.482,0.00050489,120]
[391812961,1760865740815,-1000.0,0.00050666,90]
[391812962,1760865741153,264.25,0.00050489,120]
[391812963,1760865749406,1000000.0,0.000465,120]
[391812964,1760865753523,1000.0,0.00050684,120]
[391812965,1760865756554,913092.55632843,0.0005,120]
[391812966,1760865812428,157.266653,0.00033106,120]
[391812967,1760865812842,157.266653,0.00033106,120]
[391812968,1760865813254,157.266653,0.00033106,120]
[391812969,1760865813657,157.266653,0.00033106,120]
[391812970,1760865814102,157.266653,0.00033106,120]
[391812971,1760865814501,157.266653,0.00033106,120]
[391812972,1760865814924,157.266653,0.00033106,120]
[391812973,1760865815871,157.266653,0.00033106,120]
[391812974,1760865816889,157.266653,0.00033106,120]
[391812975,1760865817315,157.266653,0.00033106,120]
[391812976,1760865817771,157.266653,0.00033106,120]
[391812977,1760865844811,500.0,0.00024682,120]
[391812978,1760865844916,500.0,0.00022561,120]
[391812979,1760865845013,500.0,0.00023376,120]
[391812980,1760865845120,500.0,0.00023376,120]
[391812981,1760865845214,500.0,0.00023376,120]
[391812982,1760865908131,28297.80228461,0.00015,2]
[391812983,1760865908159,32047.91366178,0.00015,2]
[391812987,1760865929314,1247.21924141,0.00018,2]
[391812988,1760866072583,7168.94495752,0.00018,2]
[391812989,1760866076181,9535.92213929,0.00015,2]
[391812990,1760866076207,47806.30773356,0.00015,2]
[391812991,1760866076232,47755.0,0.00015,2]
[391812992,1760866076256,44713.7662951,0.00015,2]
[391812993,1760866076284,49500.0,0.00015,2]
[391812994,1760866076313,49849.35,0.00015,2]
[391812995,1760866076339,50000.0,0.00015,2]
[391812996,1760866076369,75887.91912181,0.00015,2]
[391812997,1760866093887,310.32811063,0.000135,2]
[391813002,1760866170830,-420.047782,0.00022269,2]
[391813003,1760866170855,-500.0,0.00022382,2]
[391813004,1760866170879,-2201.733122,0.00022438,2]
[391813005,1760866170904,-58.849307,0.00022685,2]
[391813006,1760866170929,-150.915125,0.00022685,2]
[391813007,1760866170954,-2201.733122,0.00022685,2]
[391813008,1760866170978,-157.266653,0.00022685,2]
[391813009,1760866171008,-500.0,0.00022711,2]
[391813010,1760866171036,-500.0,0.00022711,2]
[391813011,1760866171062,-2201.733122,0.0002293,2]
[391813012,1760866171089,-155.601297,0.00023177,2]
[391813013,1760866171114,-153.53801,0.00023177,2]
[391813014,1760866171137,-2201.733122,0.00023177,2]